[Event "28th Bosnjaci Open 2024"]
[Site "Bosnjaci"]
[Date "2024.01.07"]
[Round "7.4"]
[White "Hadzovic, Amir"]
[Black "Culum, Sanjin"]
[Result "0-1"]
[ECO "B25"]
[WhiteElo "2307"]
[BlackElo "2349"]
[Annotator "RC"]
[PlyCount "104"]
[EventDate "2024.01.02"]
[EventType "swiss"]
[EventCountry "CRO"]
[SourceTitle "playchess.com"]
[Source "ChessBase"]
[SourceQuality "1"]
[TimeControl "5400+30"]

1. e4 {[%emt 0:04:39]} c5 {[%emt 0:00:20]} 2. Nc3 {[%emt 0:00:25]} Nc6 {[%emt 0:01:24]} 3. Nge2 {[%emt 0:01:09]} Nf6 {[%emt 0:02:53]} 4. g3 {[%emt 0:00:23]} g6 {[%emt 0:00:43]} 5. Bg2 {[%emt 0:00:06]} Bg7 {[%emt 0:00:05]} 6. O-O {[%emt 0:00:35]} O-O {[%emt 0:00:07]} 7. d3 {[%emt 0:00:40]} d6 {[%emt 0:00:55]} 8. f4 {[%emt 0:00:46]} Rb8 {[%emt 0:01:35]} 9. h3 {[%emt 0:02:13]} Nd7 {[%emt 0:01:48]} 10. g4 {[%emt 0:00:55]} b5 {[%emt 0:03:46]} 11. Ng3 {[%emt 0:00:52]} Nd4 {[%emt 0:07:29]} 12. Nd5 {[%emt 0:04:09]} b4 {[%emt 0:04:07]} 13. Ne3 {[%emt 0:04:06]} a5 {[%emt 0:11:03]} 14. a4 {[%emt 0:06:46]} Ba6 {[%emt 0:07:04]} 15. Bd2 {[%emt 0:05:59]} b3 {[%emt 0:04:03]} 16. Bc3 {[%emt 0:14:29]} bxc2 {[%emt 0:03:49]} 17. Nxc2 {[%emt 0:04:35]} Qb6 {[%emt 0:01:15]} 18. Ne3 {[%emt 0:08:00]} c4 {[%emt 0:06:04]} 19. Nd5 {[%emt 0:01:41]} Qc5 {[%emt 0:00:42]} 20. Nxe7+ {[%emt 0:01:13]} Kh8 {[%emt 0:00:03]} 21. Kh1 {[%emt 0:01:12]} cxd3 {[%emt 0:00:28]} 22. Rc1 {[%emt 0:03:16]} Nc2 {[%emt 0:04:09]} 23. Bxg7+ {[%emt 0:03:10]} Kxg7 {[%emt 0:00:05]} 24. Qd2 {[%emt 0:05:08]} Rfe8 {[%emt 0:06:55]} 25. Nd5 {[%emt 0:00:35]} Nb6 {[%emt 0:07:07]} 26. Nxb6 {[%emt 0:06:34]} Rxb6 {[%emt 0:02:53]} 27. f5 {[%emt 0:01:03]} Qe5 {[%emt 0:02:48]} 28. Nh5+ {[%emt 0:07:59]} Kh8 {[%emt 0:06:09]} 29. fxg6 {[%emt 0:01:29]} fxg6 {[%emt 0:00:20]} 30. Qh6 {[%emt 0:00:48]} Qe7 {[%emt 0:00:53]} 31. Nf6 {[%emt 0:02:28]} Reb8 {[%emt 0:01:26]} 32. Nxh7 {[%emt 0:03:54]} Qg7 {[%emt 0:00:56]} 33. Qxg7+ {[%emt 0:01:57]} Kxg7 {[%emt 0:00:04]} 34. Ng5 {[%emt 0:00:05]} Bc4 {[%emt 0:02:12]} 35. Rf2 {[%emt 0:00:58]} Rxb2 {[%emt 0:00:32]} 36. Bf1 {[%emt 0:01:01]} Ne3 {[%emt 0:02:05]} 37. Rxb2 {[%emt 0:02:45]} Rxb2 {[%emt 0:00:06]} 38. Bxd3 {[%emt 0:00:28]} Bxd3 {[%emt 0:00:05]} 39. Rc6 {[%emt 0:00:22]} Nf1 {[%emt 0:05:05]} 40. Rxd6 {[%emt 0:00:50]} Ng3+ {[%emt 0:00:02]} 41. Kg1 {[%emt 0:00:09]} Bf1 {[%emt 0:00:14]} 42. Ne6+ {[%emt 0:00:41]} Kf6 {[%emt 0:00:10]} 43. Nf4+ {[%emt 0:00:34]} Ke5 {[%emt 0:00:07]} 44. Nd3+ {[%emt 0:00:06]} Bxd3 {[%emt 0:00:05]} 45. Rxd3 {[%emt 0:00:07]} Nxe4 {[%emt 0:00:09]} 46. Rf3 {[%emt 0:00:26]} Rb4 {[%emt 0:00:28]} 47. h4 {[%emt 0:00:14]} Nd2 {[%emt 0:01:31]} 48. Re3+ {[%emt 0:00:48]} Re4 {[%emt 0:01:00]} 49. Rxe4+ {[%emt 0:00:24]} Nxe4 {[%emt 0:00:03]} 50. Kg2 {[%emt 0:02:18]} Nc5 {[%emt 0:00:04]} 51. h5 {[%emt 0:00:00]} gxh5 {[%emt 0:00:06]} 52. gxh5 {[%emt 0:00:00]} Nxa4 {[%emt 0:00:04]} 0-1

[Event "28th Bosnjaci Open 2024"]
[Site "Bosnjaci"]
[Date "2024.01.07"]
[Round "7.5"]
[White "Milovic, Jovan"]
[Black "Kovacevic, Blazimir"]
[Result "1-0"]
[ECO "A00"]
[WhiteElo "2223"]
[BlackElo "2381"]
[Annotator "RC"]
[PlyCount "119"]
[EventDate "2024.01.02"]
[EventType "swiss"]
[EventCountry "CRO"]
[SourceTitle "playchess.com"]
[Source "ChessBase"]
[SourceQuality "1"]
[TimeControl "5400+30"]

1. g3 {[%emt 0:02:25]} e5 {[%emt 0:02:23]} 2. Bg2 {[%emt 0:00:06]} d5 {[%emt 0:00:35]} 3. d4 {[%emt 0:03:18]} e4 {[%emt 0:02:14]} 4. c4 {[%emt 0:00:19]} c6 {[%emt 0:00:21]} 5. Nc3 {[%emt 0:00:50]} Nf6 {[%emt 0:07:02]} 6. Bg5 {[%emt 0:03:15]} Bb4 {[%emt 0:01:09]} 7. Qb3 {[%emt 0:01:26]} Bxc3+ {[%emt 0:00:08]} 8. bxc3 {[%emt 0:00:34]} Nbd7 {[%emt 0:03:02]} 9. cxd5 {[%emt 0:00:50]} cxd5 {[%emt 0:00:04]} 10. Qa3 {[%emt 0:06:13]} Nb6 {[%emt 0:03:42]} 11. f3 {[%emt 0:07:27]} exf3 {[%emt 0:03:59]} 12. Nxf3 {[%emt 0:00:35]} h6 {[%emt 0:00:46]} 13. Bxf6 {[%emt 0:03:08]} Qxf6 {[%emt 0:00:05]} 14. O-O {[%emt 0:01:13]} Qe7 {[%emt 0:02:24]} 15. Qxe7+ {[%emt 0:00:59]} Kxe7 {[%emt 0:00:05]} 16. Ne5 {[%emt 0:01:08]} Be6 {[%emt 0:00:17]} 17. e4 {[%emt 0:00:25]} dxe4 {[%emt 0:25:39]} 18. Bxe4 {[%emt 0:03:02]} Rac8 {[%emt 0:00:03]} 19. Rae1 {[%emt 0:07:34]} Rxc3 {[%emt 0:17:15]} 20. d5 {[%emt 0:00:54]} Bh3 {[%emt 0:06:08]} 21. d6+ {[%emt 0:05:11]} Ke6 {[%emt 0:03:23]} 22. Bf5+ {[%emt 0:09:09]} Bxf5 {[%emt 0:00:09]} 23. Ng6+ {[%emt 0:00:07]} Kxd6 {[%emt 0:01:14]} 24. Nxh8 {[%emt 0:00:07]} Be6 {[%emt 0:00:35]} 25. Nxf7+ {[%emt 0:00:07]} Kd7 {[%emt 0:00:12]} 26. Rd1+ {[%emt 0:01:00]} Ke7 {[%emt 0:05:21]} 27. Ne5 {[%emt 0:03:13]} Bxa2 {[%emt 0:02:05]} 28. Ng6+ {[%emt 0:00:17]} Ke6 {[%emt 0:00:04]} 29. Nf4+ {[%emt 0:05:52]} Ke7 {[%emt 0:02:47]} 30. Ng6+ {[%emt 0:04:46]} Ke6 {[%emt 0:00:05]} 31. Rfe1+ {[%emt 0:00:42]} Kf7 {[%emt 0:01:59]} 32. Rd6 {[%emt 0:00:12]} Nd5 {[%emt 0:03:58]} 33. Ne5+ {[%emt 0:06:34]} Kg8 {[%emt 0:00:29]} 34. Rd8+ {[%emt 0:00:23]} Kh7 {[%emt 0:00:04]} 35. Rd7 {[%emt 0:00:15]} Nf6 {[%emt 0:00:49]} 36. Rxb7 {[%emt 0:01:18]} Bd5 {[%emt 0:00:18]} 37. Rb2 {[%emt 0:00:54]} a5 {[%emt 0:00:41]} 38. Rd2 {[%emt 0:00:33]} a4 {[%emt 0:01:07]} 39. Nd7 {[%emt 0:01:00]} Bb3 {[%emt 0:01:41]} 40. Nxf6+ {[%emt 0:05:38]} gxf6 {[%emt 0:00:01]} 41. Re7+ {[%emt 0:00:09]} Kg6 {[%emt 0:00:08]} 42. Ra7 {[%emt 0:00:03]} Rc6 {[%emt 0:03:44]} 43. Kg2 {[%emt 0:00:41]} h5 {[%emt 0:00:37]} 44. Kf3 {[%emt 0:00:35]} Rc3+ {[%emt 0:01:03]} 45. Kf2 {[%emt 0:01:31]} Rc6 {[%emt 0:00:05]} 46. Ra5 {[%emt 0:01:49]} Rc1 {[%emt 0:01:14]} 47. Rd6 {[%emt 0:00:55]} Rc2+ {[%emt 0:00:27]} 48. Ke3 {[%emt 0:01:02]} Rxh2 {[%emt 0:00:11]} 49. Raa6 {[%emt 0:00:05]} Kg5 {[%emt 0:01:08]} 50. Rxf6 {[%emt 0:00:21]} Kg4 {[%emt 0:00:21]} 51. Ra5 {[%emt 0:07:13]} Bd1 {[%emt 0:01:15]} 52. Rf1 {[%emt 0:00:51]} Bb3 {[%emt 0:00:47]} 53. Rf4+ {[%emt 0:00:18]} Kxg3 {[%emt 0:00:26]} 54. Rg5+ {[%emt 0:00:06]} Kh3 {[%emt 0:00:19]} 55. Rxh5+ {[%emt 0:00:17]} Kg3 {[%emt 0:00:20]} 56. Rg5+ {[%emt 0:00:19]} Kh3 {[%emt 0:00:09]} 57. Rf8 {[%emt 0:00:23]} Kh4 {[%emt 0:00:25]} 58. Rg7 {[%emt 0:00:03]} Bd1 {[%emt 0:00:45]} 59. Rh8+ {[%emt 0:00:29]} Bh5 {[%emt 0:00:04]} 60. Rxh5+ {[%emt 0:00:05]} 1-0

[Event "28th Bosnjaci Open 2024"]
[Site "Bosnjaci"]
[Date "2024.01.07"]
[Round "7.6"]
[White "Rosic, Slavko S"]
[Black "Muratovic, Efim"]
[Result "0-1"]
[ECO "B08"]
[WhiteElo "2231"]
[BlackElo "2345"]
[Annotator "ChessBase"]
[PlyCount "102"]
[EventDate "2024.01.02"]
[EventType "swiss"]
[EventCountry "CRO"]
[TimeControl "5400+30"]

1. e4 {[%emt 0:00:03]} g6 {[%emt 0:01:48]} 2. d4 {[%emt 0:00:20]} Bg7 {[%emt 0:00:06]} 3. Nf3 {[%emt 0:05:56]} d6 {[%emt 0:00:12]} 4. Bc4 {[%emt 0:00:41]} Nf6 {[%emt 0:03:07]} 5. Nc3 {[%emt 0:00:31]} c6 {[%emt 0:01:21]} 6. a4 {[%emt 0:00:45]} O-O {[%emt 0:02:25]} 7. O-O {[%emt 0:02:34]} d5 {[%emt 0:04:12]} 8. exd5 {[%emt 0:04:03]} cxd5 {[%emt 0:00:34]} 9. Be2 {[%emt 0:05:31]} Nc6 {[%emt 0:09:45]} 10. Ne5 {[%emt 0:03:52]} Qb6 {[%emt 0:00:20]} 11. Nxc6 {[%emt 0:03:24]} Qxc6 {[%emt 0:03:13]} 12. Bf4 {[%emt 0:01:20]} a6 {[%emt 0:05:24]} 13. Be5 {[%emt 0:02:25]} Rd8 {[%emt 0:04:12]} 14. Bf3 {[%emt 0:17:59]} Be6 {[%emt 0:08:49]} 15. Qe2 {[%emt 0:02:10]} Rac8 {[%emt 0:00:39]} 16. h3 {[%emt 0:05:36]} Bh6 {[%emt 0:03:36]} 17. a5 {[%emt 0:07:07]} Ne8 {[%emt 0:06:32]} 18. Bg4 {[%emt 0:02:33]} Bxg4 {[%emt 0:01:32]} 19. Qxg4 {[%emt 0:09:35]} Nd6 {[%emt 0:01:07]} 20. Bf4 {[%emt 0:02:12]} Bg7 {[%emt 0:09:35]} 21. Rfd1 {[%emt 0:07:33]} Nc4 {[%emt 0:00:58]} 22. Ra2 {[%emt 0:01:10]} e6 {[%emt 0:02:07]} 23. Rd3 {[%emt 0:01:27]} Rd7 {[%emt 0:01:11]} 24. b3 {[%emt 0:02:30]} Nd6 {[%emt 0:12:53]} 25. Na4 {[%emt 0:00:27]} Re8 {[%emt 0:05:24]} 26. Nb6 {[%emt 0:00:25]} Rdd8 {[%emt 0:00:31]} 27. Qf3 {[%emt 0:03:10]} Nf5 {[%emt 0:00:55]} 28. Qd1 {[%emt 0:01:02]} h6 {[%emt 0:01:28]} 29. g4 {[%emt 0:00:42]} Nd6 {[%emt 0:00:16]} 30. f3 {[%emt 0:00:31]} Nc8 {[%emt 0:00:42]} 31. Na4 {[%emt 0:00:18]} Qb5 {[%emt 0:00:39]} 32. Qd2 {[%emt 0:01:41]} Kh7 {[%emt 0:00:31]} 33. Kg2 {[%emt 0:00:24]} Ne7 {[%emt 0:00:45]} 34. Nb6 {[%emt 0:00:15]} Nc6 {[%emt 0:02:45]} 35. Ra4 {[%emt 0:02:44]} e5 {[%emt 0:02:23]} 36. dxe5 {[%emt 0:00:17]} Nxe5 {[%emt 0:00:35]} 37. Bxe5 {[%emt 0:00:33]} Rxe5 {[%emt 0:00:06]} 38. f4 {[%emt 0:00:34]} Re7 {[%emt 0:00:14]} 39. Kg3 {[%emt 0:01:38]} d4 {[%emt 0:00:30]} 40. Nc4 {[%emt 0:01:02]} Qe8 {[%emt 0:01:45]} 41. Rf3 {[%emt 0:00:13]} Kg8 {[%emt 0:01:28]} 42. Ne5 {[%emt 0:00:30]} g5 {[%emt 0:00:20]} 43. Nd3 {[%emt 0:00:45]} Re2 {[%emt 0:00:09]} 44. Qd1 {[%emt 0:01:14]} Rc8 {[%emt 0:00:36]} 45. Rc4 {[%emt 0:00:07]} Rxc4 {[%emt 0:00:19]} 46. bxc4 {[%emt 0:00:01]} Qe4 {[%emt 0:00:38]} 47. Qc1 {[%emt 0:01:22]} Bf6 {[%emt 0:01:36]} 48. Nc5 {[%emt 0:00:30]} Qe7 {[%emt 0:00:17]} 49. Nd3 {[%emt 0:00:27]} gxf4+ {[%emt 0:00:15]} 50. Rxf4 {[%emt 0:01:55]} Bg5 {[%emt 0:00:58]} 51. Qf1 {[%emt 0:00:16]} Bh4+ {[%emt 0:00:13]} 0-1

[Event "28th Bosnjaci Open 2024"]
[Site "Bosnjaci"]
[Date "2024.01.07"]
[Round "7.7"]
[White "Alimpic, Aleksa"]
[Black "Ljikar, Zoran"]
[Result "0-1"]
[ECO "A85"]
[WhiteElo "2282"]
[BlackElo "2200"]
[Annotator "RC"]
[PlyCount "82"]
[EventDate "2024.01.02"]
[EventType "swiss"]
[EventCountry "CRO"]
[SourceTitle "playchess.com"]
[Source "ChessBase"]
[SourceQuality "1"]
[TimeControl "5400+30"]

1. d4 {[%emt 0:00:02]} f5 {[%emt 0:02:19]} 2. Nf3 {[%emt 0:00:15]} d6 {[%emt 0:00:05]} 3. Bf4 {[%emt 0:02:05]} Nf6 {[%emt 0:01:25]} 4. e3 {[%emt 0:00:08]} g6 {[%emt 0:00:43]} 5. c4 {[%emt 0:00:09]} Bg7 {[%emt 0:00:38]} 6. Nc3 {[%emt 0:00:07]} O-O {[%emt 0:01:10]} 7. c5 {[%emt 0:00:24]} c6 {[%emt 0:07:21]} 8. Bc4+ {[%emt 0:03:49]} Kh8 {[%emt 0:01:59]} 9. O-O {[%emt 0:05:02]} b5 {[%emt 0:05:37]} 10. Bb3 {[%emt 0:07:38]} a5 {[%emt 0:11:25]} 11. a4 {[%emt 0:09:03]} b4 {[%emt 0:00:32]} 12. Ne2 {[%emt 0:00:11]} Ne4 {[%emt 0:01:25]} 13. Ng3 {[%emt 0:05:09]} Na6 {[%emt 0:19:13]} 14. cxd6 {[%emt 0:07:01]} exd6 {[%emt 0:00:08]} 15. Rc1 {[%emt 0:01:16]} Bd7 {[%emt 0:02:02]} 16. Nd2 {[%emt 0:07:18]} Nxd2 {[%emt 0:03:25]} 17. Qxd2 {[%emt 0:00:05]} Qe7 {[%emt 0:00:07]} 18. Ne2 {[%emt 0:02:35]} Nc7 {[%emt 0:00:20]} 19. h3 {[%emt 0:01:18]} Ne6 {[%emt 0:02:01]} 20. Bxe6 {[%emt 0:08:55]} Qxe6 {[%emt 0:00:08]} 21. d5 {[%emt 0:00:44]} Qxd5 {[%emt 0:01:56]} 22. Qxd5 {[%emt 0:00:06]} cxd5 {[%emt 0:00:03]} 23. Bxd6 {[%emt 0:11:03]} Rfc8 {[%emt 0:12:59]} 24. b3 {[%emt 0:04:26]} Be6 {[%emt 0:00:34]} 25. Nd4 {[%emt 0:01:14]} Bd7 {[%emt 0:03:29]} 26. f4 {[%emt 0:02:57]} Kg8 {[%emt 0:03:57]} 27. Kf2 {[%emt 0:00:31]} Kf7 {[%emt 0:00:57]} 28. Ke2 {[%emt 0:01:20]} Bxd4 {[%emt 0:05:51]} 29. exd4 {[%emt 0:00:04]} Ke6 {[%emt 0:00:07]} 30. Rxc8 {[%emt 0:02:53]} Bxc8 {[%emt 0:00:20]} 31. Bc5 {[%emt 0:01:22]} Ba6+ {[%emt 0:00:13]} 32. Kf2 {[%emt 0:00:06]} Bxf1 {[%emt 0:00:02]} 33. Kxf1 {[%emt 0:00:01]} Kd7 {[%emt 0:00:30]} 34. Kf2 {[%emt 0:01:00]} Kc6 {[%emt 0:02:16]} 35. g3 {[%emt 0:00:54]} Re8 {[%emt 0:00:05]} 36. h4 {[%emt 0:02:03]} Re4 {[%emt 0:02:03]} 37. Ba7 {[%emt 0:00:16]} h6 {[%emt 0:01:28]} 38. Bc5 {[%emt 0:00:08]} g5 {[%emt 0:01:52]} 39. fxg5 {[%emt 0:00:41]} hxg5 {[%emt 0:00:02]} 40. h5 {[%emt 0:00:01]} f4 {[%emt 0:01:46]} 41. g4 {[%emt 0:00:32]} Re3 {[%emt 0:00:16]} 0-1

[Event "28th Bosnjaci Open 2024"]
[Site "Bosnjaci"]
[Date "2024.01.07"]
[Round "7.10"]
[White "Jocev, Milan"]
[Black "Car, Filip"]
[Result "1/2-1/2"]
[ECO "E05"]
[WhiteElo "2376"]
[BlackElo "2127"]
[Annotator "RC"]
[PlyCount "83"]
[EventDate "2024.01.02"]
[EventType "swiss"]
[EventCountry "CRO"]
[SourceTitle "playchess.com"]
[Source "ChessBase"]
[SourceQuality "1"]
[TimeControl "5400+30"]

1. d4 {[%emt 0:00:03]} Nf6 {[%emt 0:00:09]} 2. c4 {[%emt 0:00:11]} e6 {[%emt 0:00:11]} 3. g3 {[%emt 0:00:08]} d5 {[%emt 0:00:24]} 4. Nf3 {[%emt 0:00:18]} Be7 {[%emt 0:00:07]} 5. Bg2 {[%emt 0:00:08]} O-O {[%emt 0:00:11]} 6. O-O {[%emt 0:00:04]} dxc4 {[%emt 0:00:10]} 7. Na3 {[%emt 0:00:20]} Bxa3 {[%emt 0:00:07]} 8. bxa3 {[%emt 0:00:04]} Bd7 {[%emt 0:00:11]} 9. Qc2 {[%emt 0:01:23]} Bc6 {[%emt 0:03:52]} 10. Qxc4 {[%emt 0:01:25]} Nbd7 {[%emt 0:01:16]} 11. Bg5 {[%emt 0:02:36]} h6 {[%emt 0:07:20]} 12. Bf4 {[%emt 0:00:24]} Nb6 {[%emt 0:01:20]} 13. Qd3 {[%emt 0:01:13]} Be4 {[%emt 0:13:25]} 14. Qb3 {[%emt 0:01:52]} c6 {[%emt 0:01:02]} 15. a4 {[%emt 0:04:30]} Bxf3 {[%emt 0:12:43]} 16. Bxf3 {[%emt 0:00:08]} Qxd4 {[%emt 0:00:06]} 17. a5 {[%emt 0:00:46]} Nbd5 {[%emt 0:00:26]} 18. Rfd1 {[%emt 0:04:25]} Qc3 {[%emt 0:00:32]} 19. Qxc3 {[%emt 0:06:57]} Nxc3 {[%emt 0:00:07]} 20. Rdc1 {[%emt 0:00:07]} Ncd5 {[%emt 0:03:11]} 21. Be5 {[%emt 0:00:22]} Rac8 {[%emt 0:03:47]} 22. e4 {[%emt 1:14:06]} Ne7 {[%emt 0:08:17]} 23. Bd6 {[%emt 0:00:00]} Rfe8 {[%emt 0:00:23]} 24. Rab1 {[%emt 0:00:00]} b5 {[%emt 0:06:48]} 25. axb6 {[%emt 0:00:00]} axb6 {[%emt 0:00:06]} 26. Rxb6 {[%emt 0:00:00]} Ra8 {[%emt 0:00:22]} 27. Bxe7 {[%emt 0:00:00]} Rxe7 {[%emt 0:00:12]} 28. Rbxc6 {[%emt 0:00:00]} Ra3 {[%emt 0:31:15]} 29. e5 {[%emt 0:00:00]} Rxf3 {[%emt 0:00:30]} 30. exf6 {[%emt 0:00:00]} Ra7 {[%emt 0:01:59]} 31. Rc8+ {[%emt 0:00:00]} Kh7 {[%emt 0:00:05]} 32. R1c7 {[%emt 0:00:00]} Rxa2 {[%emt 0:01:28]} 33. Rxf7 {[%emt 0:00:00]} Rxf6 {[%emt 0:00:52]} 34. Rxf6 {[%emt 0:00:00]} gxf6 {[%emt 0:00:01]} 35. Rc6 {[%emt 0:00:00]} Ra1+ {[%emt 0:00:09]} 36. Kg2 {[%emt 0:00:00]} Re1 {[%emt 0:00:08]} 37. h4 {[%emt 0:00:00]} h5 {[%emt 0:01:30]} 38. Kf3 {[%emt 0:00:00]} Kg6 {[%emt 0:00:20]} 39. Rc8 {[%emt 0:00:00]} e5 {[%emt 0:00:53]} 40. Rg8+ {[%emt 0:00:00]} Kf7 {[%emt 0:00:10]} 41. Rh8 {[%emt 0:00:00]} Kg6 {[%emt 0:00:05]} 42. Rg8+ {[%emt 0:00:00]} 1/2-1/2

[Event "28th Bosnjaci Open 2024"]
[Site "Bosnjaci"]
[Date "2024.01.07"]
[Round "7.11"]
[White "Saric, Kristina"]
[Black "Biti, Ozren"]
[Result "1/2-1/2"]
[ECO "C64"]
[WhiteElo "2111"]
[BlackElo "2308"]
[Annotator "RC"]
[PlyCount "36"]
[EventDate "2024.01.02"]
[EventType "swiss"]
[EventCountry "CRO"]
[SourceTitle "playchess.com"]
[Source "ChessBase"]
[SourceQuality "1"]
[TimeControl "5400+30"]

1. e4 {[%emt 0:00:02]} e5 {[%emt 0:00:14]} 2. Nf3 {[%emt 0:00:09]} Nc6 {[%emt 0:00:16]} 3. Bb5 {[%emt 0:00:12]} Bc5 {[%emt 0:00:12]} 4. c3 {[%emt 0:01:46]} f5 {[%emt 0:01:35]} 5. O-O {[%emt 0:03:33]} fxe4 {[%emt 0:04:29]} 6. Nxe5 {[%emt 0:02:50]} Nxe5 {[%emt 0:09:07]} 7. Qh5+ {[%emt 0:00:40]} Ng6 {[%emt 0:09:03]} 8. Qxc5 {[%emt 0:00:29]} c6 {[%emt 0:06:30]} 9. Be2 {[%emt 0:01:18]} Qe7 {[%emt 0:06:16]} 10. Qe3 {[%emt 0:02:00]} Nf6 {[%emt 0:01:46]} 11. d3 {[%emt 0:01:03]} O-O {[%emt 0:03:24]} 12. dxe4 {[%emt 0:06:10]} Qxe4 {[%emt 0:01:42]} 13. Qxe4 {[%emt 0:04:36]} Nxe4 {[%emt 0:00:06]} 14. Nd2 {[%emt 0:01:10]} Nxd2 {[%emt 0:04:53]} 15. Bxd2 {[%emt 0:00:05]} d5 {[%emt 0:02:10]} 16. Rfe1 {[%emt 0:01:16]} Bf5 {[%emt 0:03:24]} 17. Bf1 {[%emt 0:00:51]} Rfe8 {[%emt 0:03:18]} 18. Re3 {[%emt 0:08:51]} Rxe3 {[%emt 0:03:30]} 1/2-1/2

[Event "28th Bosnjaci Open 2024"]
[Site "Bosnjaci"]
[Date "2024.01.07"]
[Round "7.12"]
[White "Cupic, Lovro"]
[Black "Berke, Ana"]
[Result "1/2-1/2"]
[ECO "B76"]
[WhiteElo "2265"]
[BlackElo "2092"]
[Annotator "RC"]
[PlyCount "120"]
[EventDate "2024.01.02"]
[EventType "swiss"]
[EventCountry "CRO"]
[SourceTitle "playchess.com"]
[Source "ChessBase"]
[SourceQuality "1"]
[TimeControl "5400+30"]

1. e4 {[%emt 0:00:16]} c5 {[%emt 0:00:08]} 2. Nf3 {[%emt 0:00:04]} d6 {[%emt 0:00:06]} 3. d4 {[%emt 0:00:05]} cxd4 {[%emt 0:00:06]} 4. Nxd4 {[%emt 0:00:03]} Nf6 {[%emt 0:00:08]} 5. Nc3 {[%emt 0:00:05]} g6 {[%emt 0:00:05]} 6. Be3 {[%emt 0:00:18]} Bg7 {[%emt 0:00:07]} 7. Qd2 {[%emt 0:00:04]} Nc6 {[%emt 0:00:37]} 8. f3 {[%emt 0:03:40]} O-O {[%emt 0:00:09]} 9. O-O-O {[%emt 0:00:18]} d5 {[%emt 0:00:19]} 10. exd5 {[%emt 0:00:31]} Nxd5 {[%emt 0:00:07]} 11. Nxc6 {[%emt 0:00:08]} bxc6 {[%emt 0:00:03]} 12. Bd4 {[%emt 0:00:07]} Nxc3 {[%emt 0:00:18]} 13. Qxc3 {[%emt 0:04:22]} Bh6+ {[%emt 0:00:18]} 14. Be3 {[%emt 0:00:05]} Bxe3+ {[%emt 0:00:17]} 15. Qxe3 {[%emt 0:00:06]} Qb6 {[%emt 0:01:28]} 16. Qxe7 {[%emt 0:03:41]} Be6 {[%emt 0:00:04]} 17. Bd3 {[%emt 0:11:27]} Rab8 {[%emt 0:09:13]} 18. Qf6 {[%emt 0:02:16]} Bxa2 {[%emt 0:26:02]} 19. h4 {[%emt 0:05:05]} Qe3+ {[%emt 0:02:07]} 20. Rd2 {[%emt 0:00:07]} Rfe8 {[%emt 0:10:41]} 21. h5 {[%emt 0:01:36]} Re6 {[%emt 0:01:12]} 22. Qh4 {[%emt 0:09:09]} g5 {[%emt 0:06:01]} 23. Qf2 {[%emt 0:02:35]} a5 {[%emt 0:05:13]} 24. Qxe3 {[%emt 0:00:32]} Rxe3 {[%emt 0:00:07]} 25. Re2 {[%emt 0:15:19]} Rxe2 {[%emt 0:00:42]} 26. Bxe2 {[%emt 0:00:08]} Bd5 {[%emt 0:01:32]} 27. Rd1 {[%emt 0:00:35]} Re8 {[%emt 0:01:56]} 28. Kd2 {[%emt 0:00:46]} Rb8 {[%emt 0:05:30]} 29. b3 {[%emt 0:00:27]} h6 {[%emt 0:02:50]} 30. Ra1 {[%emt 0:00:17]} Ra8 {[%emt 0:00:17]} 31. b4 {[%emt 0:01:42]} a4 {[%emt 0:00:37]} 32. c4 {[%emt 0:00:34]} Be6 {[%emt 0:00:18]} 33. Kc3 {[%emt 0:00:30]} Kg7 {[%emt 0:02:26]} 34. Ra2 {[%emt 0:08:05]} Kf6 {[%emt 0:03:11]} 35. Kd4 {[%emt 0:00:12]} a3 {[%emt 0:01:40]} 36. Kc5 {[%emt 0:00:20]} Ra6 {[%emt 0:01:30]} 37. b5 {[%emt 0:01:50]} cxb5 {[%emt 0:03:01]} 38. Kxb5 {[%emt 0:02:07]} Ra8 {[%emt 0:01:42]} 39. Kb4 {[%emt 0:00:09]} Ke5 {[%emt 0:00:44]} 40. Rxa3 {[%emt 0:00:19]} Rxa3 {[%emt 0:01:14]} 41. Kxa3 {[%emt 0:00:05]} Kd4 {[%emt 0:02:25]} 42. Kb4 {[%emt 0:00:10]} Ke3 {[%emt 0:00:58]} 43. Bd1 {[%emt 0:00:11]} Kf2 {[%emt 0:01:29]} 44. g4 {[%emt 0:00:12]} f5 {[%emt 0:00:55]} 45. gxf5 {[%emt 0:02:27]} Bxf5 {[%emt 0:00:09]} 46. c5 {[%emt 0:00:08]} Ke1 {[%emt 0:05:12]} 47. Bb3 {[%emt 0:07:08]} Ke2 {[%emt 0:00:33]} 48. Bd5 {[%emt 0:00:23]} Ke3 {[%emt 0:01:17]} 49. Kc4 {[%emt 0:05:58]} Bd3+ {[%emt 0:02:06]} 50. Kc3 {[%emt 0:00:27]} Bf5 {[%emt 0:02:15]} 51. c6 {[%emt 0:00:12]} g4 {[%emt 0:00:25]} 52. fxg4 {[%emt 0:00:07]} Bxg4 {[%emt 0:00:04]} 53. Kc4 {[%emt 0:04:50]} Kf4 {[%emt 0:00:58]} 54. Kd4 {[%emt 0:00:21]} Kf5 {[%emt 0:00:34]} 55. c7 {[%emt 0:03:45]} Kf6 {[%emt 0:00:37]} 56. Be4 {[%emt 0:01:08]} Bc8 {[%emt 0:01:09]} 57. Kd5 {[%emt 0:00:36]} Ke7 {[%emt 0:01:31]} 58. Ke5 {[%emt 0:00:08]} Kd7 {[%emt 0:00:44]} 59. Kf6 {[%emt 0:00:51]} Kxc7 {[%emt 0:00:25]} 60. Bf3 {[%emt 0:00:11]} Bd7 {[%emt 0:00:21]} 1/2-1/2

[Event "28th Bosnjaci Open 2024"]
[Site "Bosnjaci"]
[Date "2024.01.07"]
[Round "7.13"]
[White "Cvitan, Ena"]
[Black "Sundac, Ivano"]
[Result "1-0"]
[ECO "D02"]
[WhiteElo "2242"]
[BlackElo "2070"]
[Annotator "RC"]
[PlyCount "59"]
[EventDate "2024.01.02"]
[EventType "swiss"]
[EventCountry "CRO"]
[SourceTitle "playchess.com"]
[Source "ChessBase"]
[SourceQuality "1"]
[TimeControl "5400+30"]

1. d4 {[%emt 0:00:30]} d5 {[%emt 0:00:04]} 2. Nf3 {[%emt 0:00:08]} Nf6 {[%emt 0:00:06]} 3. Bf4 {[%emt 0:00:23]} c5 {[%emt 0:00:25]} 4. e3 {[%emt 0:00:19]} Nc6 {[%emt 0:00:07]} 5. Nbd2 {[%emt 0:00:12]} cxd4 {[%emt 0:00:08]} 6. exd4 {[%emt 0:00:11]} Bf5 {[%emt 0:02:00]} 7. Bb5 {[%emt 0:00:29]} e6 {[%emt 0:00:49]} 8. Ne5 {[%emt 0:03:22]} Qb6 {[%emt 0:02:28]} 9. c4 {[%emt 0:01:00]} Bb4 {[%emt 0:08:54]} 10. O-O {[%emt 0:07:14]} O-O {[%emt 0:01:03]} 11. Bxc6 {[%emt 0:00:46]} bxc6 {[%emt 0:00:08]} 12. c5 {[%emt 0:02:15]} Qa6 {[%emt 0:01:29]} 13. Nb3 {[%emt 0:02:11]} Rac8 {[%emt 0:01:17]} 14. g4 {[%emt 0:04:39]} Bg6 {[%emt 0:01:20]} 15. h4 {[%emt 0:01:31]} h6 {[%emt 0:01:53]} 16. Nxg6 {[%emt 0:05:32]} fxg6 {[%emt 0:00:09]} 17. Bd6 {[%emt 0:01:46]} Rf7 {[%emt 0:01:55]} 18. f3 {[%emt 0:00:48]} g5 {[%emt 0:11:55]} 19. hxg5 {[%emt 0:02:50]} hxg5 {[%emt 0:00:05]} 20. Rf2 {[%emt 0:02:16]} Ba5 {[%emt 0:03:20]} 21. Qe2 {[%emt 0:02:14]} Qxe2 {[%emt 0:00:55]} 22. Rxe2 {[%emt 0:00:06]} Bc7 {[%emt 0:00:09]} 23. Bxc7 {[%emt 0:02:45]} Rfxc7 {[%emt 0:00:27]} 24. Rxe6 {[%emt 0:00:17]} Kf7 {[%emt 0:00:02]} 25. Rae1 {[%emt 0:02:25]} Rb8 {[%emt 0:00:06]} 26. R1e2 {[%emt 0:01:29]} Rb4 {[%emt 0:00:08]} 27. Kg2 {[%emt 0:00:41]} a5 {[%emt 0:00:20]} 28. Nxa5 {[%emt 0:02:35]} Rxd4 {[%emt 0:00:04]} 29. Rxc6 {[%emt 0:06:02]} Ra7 {[%emt 0:00:29]} 30. Rxf6+ {[%emt 0:00:33]} 1-0